fUSD/lending_fUSD_20250119
["ID","MTS","AMOUNT","RATE_DAILY","PERIOD"]
[349577932,1737306647477,-422.24,0.00020546,2]
[349577934,1737306647487,-500.0,0.00020546,2]
[349577936,1737306647496,-249.342067,0.00020546,2]
[349577938,1737306647506,-500.0,0.00020546,2]
[349577940,1737306647516,-809.32,0.00020546,2]
[349577942,1737306647526,-500.0,0.00020546,2]
[349577944,1737306647535,-455.992338,0.00020546,2]
[349577946,1737306647545,-500.0,0.00020546,2]
[349577948,1737306647554,-679.93,0.00020546,2]
[349577949,1737306647564,-826.71,0.00020546,2]
[349577951,1737306647573,-500.0,0.00020546,2]
[349577953,1737306647583,-500.0,0.00020546,2]
[349577955,1737306647593,-500.0,0.00020546,2]
[349577957,1737306647602,-584.12,0.00020546,2]
[349577959,1737306647611,-937.19,0.00020546,2]
[349577961,1737306647620,-500.0,0.00020546,2]
[349577963,1737306647633,-1759.61,0.00020546,2]
[349577965,1737306647644,-1145.41,0.00020546,2]
[349577967,1737306647653,-500.0,0.00020546,2]
[349577969,1737306647663,-500.0,0.00020546,2]
[349577971,1737306647673,-960.57,0.00020546,2]
[349577973,1737306647682,-500.0,0.00020546,2]
[349577975,1737306647691,-500.0,0.00020546,2]
[349577977,1737306647701,-552.78,0.00020546,2]
[349577979,1737306647710,-500.0,0.00020546,2]
[349577981,1737306647720,-539.39,0.00020546,2]
[349577983,1737306647729,-500.0,0.00020546,2]
[349577984,1737306647738,-500.0,0.00020546,2]
[349577986,1737306647747,-507.17,0.00020546,2]
[349577988,1737306647756,-1238.2,0.00020546,2]
[349577990,1737306647765,-500.0,0.00020546,2]
[349577992,1737306647775,-500.0,0.00020546,2]
[349577994,1737306647785,-500.0,0.00020546,2]
[349577996,1737306647795,-746.9,0.00020546,2]
[349577999,1737306647805,-1162.11,0.00020546,2]
[349578000,1737306647815,-500.0,0.00020546,2]
[349578002,1737306647824,-500.0,0.00020546,2]
[349578004,1737306647834,-696.13,0.00020546,2]
[349578006,1737306647844,-500.0,0.00020546,2]
[349578009,1737306647853,-500.0,0.00020546,2]
[349578011,1737306647863,-500.0,0.00020546,2]
[349578012,1737306647872,-500.0,0.00020546,2]
[349578014,1737306647887,-500.0,0.00020546,2]
[349578016,1737306647896,-500.0,0.00020546,2]
[349578018,1737306647906,-500.0,0.00020546,2]
[349578020,1737306647916,-500.0,0.00020546,2]
[349578022,1737306647927,-1950.88,0.00020546,2]
[349578024,1737306647937,-633.63,0.00020546,2]
[349578026,1737306647948,-741.87,0.00020546,2]
[349578028,1737306647959,-572.25,0.00020546,2]
[349578031,1737306647969,-151.0,0.00020546,2]
[349578032,1737306647979,-311.15,0.00020547,2]
[349578034,1737306647988,-500.0,0.00020547,2]
[349578036,1737306647998,-789.54,0.00020547,2]
[349578038,1737306648007,-500.0,0.00020547,2]
[349578040,1737306648016,-443.26,0.00020547,2]
[349578042,1737306648026,-500.0,0.00020547,2]
[349578044,1737306648036,-500.0,0.00020547,2]
[349578046,1737306648046,-440.9,0.00020547,2]
[349578048,1737306648059,-500.0,0.00020547,2]
[349578050,1737306648069,-624.18,0.00020547,2]
[349578052,1737306648079,-500.0,0.00020547,2]
[349578054,1737306648088,-500.0,0.00020547,2]
[349578056,1737306648099,-500.0,0.00020547,2]
[349578058,1737306648109,-500.0,0.00020547,2]
[349578060,1737306648119,-500.0,0.00020547,2]
[349578062,1737306648130,-500.0,0.00020547,2]
[349578064,1737306648145,-635.71,0.00020547,2]
[349578066,1737306648154,-500.0,0.00020547,2]
[349578068,1737306648164,-507.36710628,0.00020547,2]
[349578070,1737306648174,-500.0,0.00020547,2]
[349578072,1737306648184,-500.0,0.00020547,2]
[349578074,1737306648194,-500.0,0.00020547,2]
[349578076,1737306648203,-500.0,0.00020547,2]
[349578078,1737306648213,-340.48,0.00020547,2]
[349578080,1737306648223,-504.72,0.00020547,2]
[349578082,1737306648232,-250.03,0.00020547,2]
[349578084,1737306648242,-366.29,0.00020547,2]
[349578086,1737306648251,-500.0,0.00020547,2]
[349578088,1737306648261,-500.0,0.00020547,2]
[349578090,1737306648270,-500.0,0.00020547,2]
[349578092,1737306648280,-500.0,0.00020547,2]
[349578094,1737306648291,-500.0,0.00020547,2]
[349578096,1737306648300,-500.0,0.00020547,2]
[349578098,1737306648309,-500.0,0.00020547,2]
[349578100,1737306648319,-500.0,0.00020547,2]
[349578102,1737306648328,-500.0,0.00020547,2]
[349578104,1737306648338,-373.34,0.00020547,2]
[349578106,1737306648348,-500.0,0.00020547,2]
[349578108,1737306648357,-500.0,0.00020547,2]
[349578110,1737306648367,-261.53,0.00020547,2]
[349578112,1737306648377,-500.0,0.00020547,2]
[349578114,1737306648392,-500.0,0.00020547,2]
[349578116,1737306648402,-500.0,0.00020547,2]
[349578118,1737306648412,-500.0,0.00020547,2]
[349578120,1737306648422,-500.0,0.00020547,2]
[349578122,1737306648432,-500.0,0.00020547,2]
[349578124,1737306648442,-500.0,0.00020547,2]
[349578126,1737306648451,-552.84,0.00020547,2]
[349578128,1737306648461,-500.0,0.00020547,2]
[349578130,1737306648471,-500.0,0.00020547,2]
[349578132,1737306648480,-500.0,0.00020547,2]
[349578134,1737306648490,-500.0,0.00020547,2]
[349578136,1737306648499,-500.0,0.00020547,2]
[349578138,1737306648509,-500.0,0.00020547,2]
[349578140,1737306648519,-500.0,0.00020547,2]
[349578142,1737306648529,-500.0,0.00020547,2]
[349578143,1737306648539,-500.0,0.00020547,2]
[349578144,1737306648548,-500.0,0.00020547,2]
[349578145,1737306648558,-500.0,0.00020547,2]
[349578146,1737306648568,-500.0,0.00020547,2]
[349578147,1737306648578,-1277.74,0.00020547,2]
[349578148,1737306648587,-500.0,0.00020547,2]
[349578149,1737306648597,-500.0,0.00020547,2]
[349578150,1737306648606,-500.0,0.00020547,2]
[349578151,1737306648616,-500.0,0.00020547,2]
[349578152,1737306648626,-500.0,0.00020547,2]
[349578153,1737306648640,-500.0,0.00020547,2]
[349578154,1737306648650,-500.0,0.00020547,2]
[349578155,1737306648659,-500.0,0.00020547,2]
[349578157,1737306648669,-500.0,0.00020547,2]
[349578158,1737306648678,-508.57153614,0.00020547,2]
[349578160,1737306648688,-500.0,0.00020547,2]
[349578162,1737306648697,-500.0,0.00020547,2]
[349578164,1737306648707,-500.0,0.00020547,2]
[349578166,1737306648716,-500.0,0.00020547,2]
[349578168,1737306648726,-1981.48,0.00020547,2]
[349578169,1737306648735,-500.0,0.00020547,2]
[349578170,1737306648745,-889.83,0.00020547,2]
[349578171,1737306648754,-500.0,0.00020547,2]
[349578172,1737306648764,-500.0,0.00020547,2]
[349578173,1737306648774,-500.0,0.00020547,2]
[349578174,1737306648784,-1387.45,0.00020547,2]
[349578175,1737306648793,-500.0,0.00020547,2]
[349578176,1737306648802,-500.0,0.00020547,2]
[349578177,1737306648812,-500.0,0.00020547,2]
[349578178,1737306648821,-500.0,0.00020547,2]
[349578179,1737306648831,-500.0,0.00020547,2]
[349578180,1737306648841,-887.52,0.00020547,2]
[349578181,1737306648850,-500.0,0.00020547,2]
[349578182,1737306648860,-500.0,0.00020547,2]
[349578183,1737306648869,-500.0,0.00020547,2]
[349578184,1737306648878,-500.0,0.00020547,2]
[349578185,1737306648893,-500.0,0.00020547,2]
[349578186,1737306648903,-2969.82321034,0.00020566,2]
[349578187,1737306648912,-258.51454022,0.00020567,2]
[349578188,1737306648921,-1170.2409897,0.0002058,2]
[349578189,1737306648931,-3900.0,0.00020601,2]
[349578190,1737306648940,-261.365,0.00020601,2]
[349578191,1737306648950,-1174.0,0.00020601,2]
[349578192,1737306648959,-500.0,0.00020618,2]
[349578193,1737306648968,-500.0,0.00020618,2]
[349578194,1737306648977,-252.64,0.00020618,2]
[349578195,1737306648987,-500.0,0.00020618,2]
[349578196,1737306648996,-500.0,0.00020618,2]
[349578197,1737306649006,-585.14314902,0.00020618,2]
[349578198,1737306649015,-500.0,0.00020618,2]
[349578199,1737306649025,-2969.82321034,0.00020677,2]
[349578200,1737306649034,-258.51454022,0.00020678,2]
[349578201,1737306649043,-1798.56986953,0.00020685,2]
[349578202,1737306649056,-612.46,0.00020718,2]
[349578203,1737306649065,-500.0,0.00020718,2]
[349578204,1737306649074,-500.0,0.00020718,2]
[349578205,1737306649084,-500.0,0.00020718,2]
[349578206,1737306649094,-541.66,0.00020718,2]
[349578207,1737306649103,-500.0,0.00020718,2]
[349578208,1737306649112,-500.0,0.00020718,2]
[349578209,1737306649122,-1000.0,0.00020739,2]
[349578210,1737306649138,-1000.0,0.00020742,2]
[349578211,1737306649148,-150.0,0.00020743,2]
[349578212,1737306649157,-150.0,0.00020746,2]
[349578213,1737306649167,-150.0,0.00020752,2]
[349578214,1737306649177,-150.0,0.00020752,2]
[349578215,1737306649186,-150.0,0.00020753,2]
[349578216,1737306649196,-200.0,0.00020757,2]
[349578217,1737306649205,-150.0,0.00020763,2]
[349578218,1737306649215,-150.0,0.00020764,2]
[349578219,1737306649225,-150.0,0.00020764,2]
[349578220,1737306649234,-150.0,0.00020766,2]
[349578221,1737306649243,-1000.0,0.00020767,2]
[349578222,1737306649253,-150.0,0.00020768,2]
[349578223,1737306649262,-1000.0,0.00020774,2]
[349578224,1737306649271,-150.0,0.00020774,2]
[349578225,1737306649283,-150.0,0.00020774,2]
[349578226,1737306649292,-150.0,0.00020776,2]
[349578227,1737306649301,-150.0,0.00020778,2]
[349578228,1737306649310,-150.0,0.00020781,2]
[349578229,1737306649319,-150.0,0.00020781,2]
[349578230,1737306649328,-1000.0,0.00020784,2]
[349578231,1737306649337,-150.0,0.00020785,2]
[349578232,1737306649347,-150.0,0.00020785,2]
[349578233,1737306649356,-1000.0,0.00020786,2]
[349578234,1737306649366,-290.74,0.00020788,2]
[349578235,1737306649375,-242.055,0.00020788,2]
[349578236,1737306649389,-150.0,0.00020788,2]
[349578237,1737306649400,-258.51454022,0.00020789,2]
[349578238,1737306649409,-150.0,0.0002079,2]
[349578239,1737306649419,-1000.0,0.00020792,2]
[349578240,1737306649429,-1000.0,0.00020793,2]
[349578241,1737306649438,-150.0,0.00020793,2]
[349578242,1737306649448,-150.0,0.00020794,2]
[349578243,1737306649594,-150.0,0.00020795,2]
[349578244,1737306649603,-150.0,0.000208,2]
[349578245,1737306649612,-150.0,0.00020804,2]
[349578246,1737306649622,-150.0,0.00020805,2]
[349578247,1737306649636,-150.0,0.00020806,2]
[349578248,1737306649645,-1000.0,0.00020808,2]
[349578249,1737306649655,-150.0,0.0002081,2]
[349578250,1737306649664,-150.0,0.00020812,2]
[349578251,1737306649674,-150.0,0.00020814,2]
[349578252,1737306649683,-502.10641252,0.00020817,2]
[349578253,1737306649693,-502.6822115,0.00020817,2]
[349578254,1737306649702,-150.0,0.00020818,2]
[349578255,1737306649712,-500.0,0.0002082,2]
[349578256,1737306649721,-249.342067,0.0002082,2]
[349578257,1737306649731,-500.0,0.0002082,2]
[349578258,1737306649740,-809.32,0.0002082,2]
[349578259,1737306649750,-535.32,0.0002082,2]
[349578260,1737306649759,-455.992338,0.0002082,2]
[349578261,1737306649769,-500.0,0.0002082,2]
[349578262,1737306649778,-679.93,0.0002082,2]
[349578263,1737306649787,-826.71,0.0002082,2]
[349578264,1737306649796,-500.0,0.0002082,2]
[349578265,1737306649805,-500.0,0.0002082,2]
[349578266,1737306649814,-500.0,0.0002082,2]
[349578267,1737306649824,-937.19,0.0002082,2]
[349578268,1737306649834,-500.0,0.0002082,2]
[349578269,1737306649843,-1759.61,0.0002082,2]
[349578270,1737306649852,-1145.41,0.0002082,2]
[349578271,1737306649861,-500.0,0.0002082,2]
[349578272,1737306649870,-500.0,0.0002082,2]
[349578273,1737306649881,-960.57,0.0002082,2]
[349578274,1737306649893,-500.0,0.0002082,2]
[349578275,1737306649902,-500.0,0.0002082,2]
[349578276,1737306649912,-552.78,0.0002082,2]
[349578277,1737306649921,-500.0,0.0002082,2]
[349578278,1737306649931,-539.39,0.0002082,2]
[349578279,1737306649941,-500.0,0.0002082,2]
[349578280,1737306649950,-500.0,0.0002082,2]
[349578281,1737306649960,-507.17,0.0002082,2]
[349578282,1737306649970,-500.0,0.0002082,2]
[349578283,1737306649980,-1238.2,0.0002082,2]
[349578284,1737306649989,-500.0,0.0002082,2]
[349578285,1737306649999,-500.0,0.0002082,2]
[349578286,1737306650009,-746.9,0.0002082,2]
[349578287,1737306650019,-1162.11,0.0002082,2]
[349578288,1737306650028,-500.0,0.0002082,2]
[349578289,1737306650039,-500.0,0.0002082,2]
[349578290,1737306650050,-696.13,0.0002082,2]
[349578291,1737306650061,-500.0,0.0002082,2]
[349578292,1737306650071,-500.0,0.0002082,2]
[349578293,1737306650080,-500.0,0.0002082,2]
[349578294,1737306650090,-500.0,0.0002082,2]
[349578295,1737306650099,-500.0,0.0002082,2]
[349578296,1737306650109,-500.0,0.0002082,2]
[349578297,1737306650118,-500.0,0.0002082,2]
[349578298,1737306650129,-1950.88,0.0002082,2]
[349578299,1737306650143,-633.63,0.0002082,2]
[349578300,1737306650153,-741.87,0.0002082,2]
[349578301,1737306650162,-572.25,0.0002082,2]
[349578302,1737306650171,-500.0,0.00020821,2]
[349578303,1737306650180,-789.54,0.00020821,2]
[349578304,1737306650188,-500.0,0.00020821,2]
[349578305,1737306650197,-500.0,0.00020821,2]
[349578306,1737306650206,-500.0,0.00020821,2]
[349578307,1737306650215,-353.40632763,0.00020821,2]
[349578308,1737306650225,-500.0,0.00020821,2]
[349578309,1737306650234,-500.0,0.00020821,2]
[349578310,1737306650243,-500.0,0.00020821,2]
[349578311,1737306650252,-500.0,0.00020821,2]
[349578312,1737306650261,-500.0,0.00020821,2]
[349578313,1737306650270,-500.0,0.00020821,2]
[349578314,1737306650280,-500.0,0.00020821,2]
[349578315,1737306650290,-500.0,0.00020821,2]
[349578316,1737306650300,-500.0,0.00020821,2]
[349578317,1737306650310,-500.0,0.00020821,2]
[349578318,1737306650319,-500.0,0.00020821,2]
[349578319,1737306650328,-500.0,0.00020821,2]
[349578320,1737306650337,-500.0,0.00020821,2]
[349578321,1737306650347,-387.06,0.00020821,2]
[349578322,1737306650355,-500.0,0.00020821,2]
[349578323,1737306650365,-500.0,0.00020821,2]
[349578324,1737306650374,-500.0,0.00020821,2]
[349578325,1737306650387,-500.0,0.00020821,2]
[349578326,1737306650397,-500.0,0.00020821,2]
[349578327,1737306650407,-500.0,0.00020821,2]
[349578328,1737306650416,-500.0,0.00020821,2]
[349578329,1737306650426,-539.68339509,0.00020821,2]
[349578330,1737306650435,-552.84,0.00020821,2]
[349578331,1737306650444,-500.0,0.00020821,2]
[349578332,1737306650453,-482.46194883,0.00020821,2]
[349578333,1737306650463,-500.0,0.00020821,2]
[349578334,1737306650472,-500.0,0.00020821,2]
[349578335,1737306650481,-500.0,0.00020821,2]
[349578336,1737306650491,-500.0,0.00020821,2]
[349578337,1737306650500,-293.07,0.00020821,2]
[349578338,1737306650509,-500.0,0.00020821,2]
[349578339,1737306650519,-500.0,0.00020821,2]
[349578340,1737306650529,-542.46,0.00020821,2]
[349578341,1737306650538,-199.7170423,0.00020821,2]
[349578342,1737306650548,-1277.74,0.00020821,2]
[349578343,1737306650557,-500.0,0.00020821,2]
[349578344,1737306650566,-500.0,0.00020821,2]
[349578345,1737306650575,-244.24,0.00020821,2]
[349578346,1737306650585,-500.0,0.00020821,2]
[349578347,1737306650594,-340.72,0.00020821,2]
[349578348,1737306650603,-500.0,0.00020821,2]
[349578349,1737306650612,-500.0,0.00020821,2]
[349578350,1737306650622,-173.6918832,0.00020821,2]
[349578351,1737306650635,-500.0,0.00020821,2]
[349578352,1737306650644,-500.0,0.00020821,2]
[349578353,1737306650654,-500.0,0.00020821,2]
[349578354,1737306650663,-224.35926734,0.00020821,2]
[349578355,1737306650672,-1981.48,0.00020821,2]
[349578356,1737306650681,-500.0,0.00020821,2]
[349578357,1737306650690,-889.83,0.00020821,2]
[349578358,1737306650699,-500.0,0.00020821,2]
[349578359,1737306650709,-1387.45,0.00020821,2]
[349578360,1737306650718,-500.0,0.00020821,2]
[349578361,1737306650727,-500.0,0.00020821,2]
[349578362,1737306650736,-304.39,0.00020821,2]
[349578363,1737306650745,-279.89814384,0.00020821,2]
[349578364,1737306650755,-887.52,0.00020821,2]
[349578365,1737306650765,-500.0,0.00020821,2]
[349578366,1737306650774,-500.0,0.00020821,2]
[349578367,1737306650783,-424.76672604,0.00020821,2]
[349578368,1737306650793,-500.0,0.00020821,2]
[349578369,1737306650802,-150.0,0.00020826,2]
[349578370,1737306650811,-150.0,0.00020827,2]
[349578371,1737306650820,-150.0,0.00020833,2]
[349578372,1737306650829,-150.0,0.00020834,2]
[349578373,1737306650839,-1000.0,0.00020835,2]
[349578374,1737306650848,-150.0,0.00020838,2]
[349578375,1737306650858,-150.0,0.0002084,2]
[349578376,1737306650867,-150.0,0.00020843,2]
[349578377,1737306650876,-150.0,0.00020845,2]
[349578378,1737306650892,-150.0,0.00020845,2]
[349578379,1737306650901,-150.0,0.00020849,2]
[349578380,1737306650910,-150.0,0.00020856,2]
[349578381,1737306650919,-150.0,0.00020857,2]
[349578382,1737306650928,-150.0,0.0002086,2]
[349578383,1737306650937,-150.0,0.00020867,2]
[349578384,1737306650946,-150.0,0.00020868,2]
[349578385,1737306650955,-150.0,0.00020869,2]
[349578386,1737306650966,-150.0,0.00020869,2]
[349578387,1737306650975,-150.0,0.00020875,2]
[349578388,1737306650984,-150.0,0.00020878,2]
[349578389,1737306650993,-150.0,0.00020878,2]
[349578390,1737306651003,-150.0,0.0002088,2]
[349578391,1737306651012,-1000.0,0.00020886,2]
[349578392,1737306651021,-150.0,0.00020891,2]
[349578393,1737306651030,-1000.0,0.00020891,2]
[349578394,1737306651039,-500.0,0.00020892,2]
[349578395,1737306651050,-500.0,0.00020892,2]
[349578396,1737306651061,-349.13,0.00020892,2]
[349578397,1737306651070,-500.0,0.00020892,2]
[349578398,1737306651080,-500.0,0.00020892,2]
[349578399,1737306651090,-1000.0,0.00020895,2]
[349578400,1737306651099,-1000.0,0.00020896,2]
[349578401,1737306651108,-150.0,0.00020896,2]
[349578402,1737306651117,-150.0,0.00020896,2]
[349578403,1737306651126,-150.0,0.00020896,2]
[349578404,1737306651141,-150.0,0.00020897,2]
[349578405,1737306651150,-1000.0,0.000209,2]
[349578406,1737306651159,-1000.0,0.000209,2]
[349578407,1737306651168,-694.0,0.000209,3]
[349578408,1737306651177,-1000.0,0.000209,2]
[349578409,1737306651186,-258.51454022,0.000209,2]
[349578410,1737306651195,-194.32161878,0.000209,2]
[349578411,1737306651205,-647.86738734,0.000209,2]
[349578412,1737306651215,-1000.0,0.000209,2]
[349578413,1737306651224,-203.54893242,0.000209,2]
[349578414,1737306651234,-519.0,0.000209,2]
[349578415,1737306651243,-4807.29011376,0.000209,2]
[349578416,1737306651252,-150.0,0.00020901,2]
[349578417,1737306651262,-1000.0,0.00020904,2]
[349578418,1737306651272,-150.0,0.00020905,2]
[349578419,1737306651282,-150.0,0.00020907,2]
[349578420,1737306651291,-150.0,0.00020909,2]
[349578421,1737306651302,-150.0,0.00020909,2]
[349578422,1737306651311,-150.0,0.00020909,2]
[349578423,1737306651321,-150.0,0.00020913,2]
[349578424,1737306651330,-1000.0,0.00020914,2]
[349578425,1737306651340,-150.0,0.00020917,2]
[349578426,1737306651349,-150.0,0.0002092,2]
[349578427,1737306651359,-150.0,0.00020921,2]
[349578428,1737306651370,-150.0,0.00020921,2]
[349578429,1737306651380,-150.0,0.00020922,2]
[349578430,1737306651393,-150.0,0.00020922,2]
[349578431,1737306651403,-1000.0,0.00020924,2]
[349578432,1737306651412,-150.0,0.00020924,2]
[349578433,1737306651421,-150.0,0.00020924,2]
[349578434,1737306651431,-184.18102978,0.00020926,2]
[349578435,1737306651440,-150.0,0.00020937,2]
[349578436,1737306651449,-150.0,0.00020939,2]
[349578437,1737306651459,-1000.0,0.00020941,2]
[349578438,1737306651468,-150.0,0.00020941,2]
[349578439,1737306651478,-150.0,0.00020946,2]
[349578440,1737306651487,-1000.0,0.00020951,2]
[349578441,1737306651496,-150.0,0.00020951,2]
[349578442,1737306651506,-150.0,0.00020951,2]
[349578443,1737306651515,-150.0,0.00020955,2]
[349578444,1737306651524,-150.0,0.00020955,2]
[349578445,1737306651534,-150.0,0.00020957,2]
[349578446,1737306651543,-150.0,0.00020958,2]
[349578447,1737306651553,-150.0,0.00020962,2]
[349578448,1737306651562,-150.0,0.00020964,2]
[349578449,1737306651571,-150.0,0.00020971,2]
[349578450,1737306651580,-150.0,0.00020975,2]
[349578451,1737306651590,-150.0,0.00020976,2]
[349578452,1737306651599,-150.0,0.00020977,2]
[349578453,1737306651608,-1000.0,0.00020977,2]
[349578454,1737306651617,-150.0,0.00020978,2]
[349578455,1737306651626,-150.0,0.00020978,2]
[349578456,1737306651639,-150.0,0.00020979,2]
[349578457,1737306651648,-1000.0,0.00020981,2]
[349578458,1737306651657,-150.0,0.00020983,2]
[349578459,1737306651667,-150.0,0.00020985,2]
[349578460,1737306651676,-1000.0,0.00020987,2]
[349578461,1737306651686,-1000.0,0.00020987,2]
[349578462,1737306651696,-150.0,0.00020991,2]
[349578463,1737306651705,-150.0,0.00020991,2]
[349578464,1737306651714,-612.46,0.00020992,2]
[349578465,1737306651723,-377.5,0.00020992,2]
[349578466,1737306651733,-162.08,0.00020992,2]
[349578467,1737306651742,-500.0,0.00020992,2]
[349578468,1737306651751,-542.05,0.00020992,2]
[349578469,1737306651761,-150.0,0.00020993,2]
[349578470,1737306651770,-150.0,0.00020993,2]
[349578471,1737306651780,-924.19996661,0.00020998,2]
[349578472,1737306651789,-399.06854385,0.00020999,5]
[349578473,1737306651799,-2601264.48445046,0.00021,15]
[349578474,1737306652077,-192.956785,0.00019998,2]
[349578475,1737306652086,-500.0,0.00019999,2]
[349578476,1737306652096,-409.36988999,0.00019999,2]
[349578477,1737306652106,-500.0,0.00019999,2]
[349578478,1737306652115,-500.0,0.00019999,2]
[349578479,1737306652124,-192.956785,0.00020272,2]
[349578480,1737306652139,-192.956785,0.00020546,2]
[349578481,1737306652148,-2969.82321034,0.00020789,2]
[349578482,1737306652157,-192.956785,0.0002082,2]
[349578483,1737306652167,-99602.85658552,0.00021,15]
[349578484,1737306652180,-2793.872543,0.00021,15]
[349578485,1737306652192,-2945.34717,0.00021,15]
[349578486,1737306652202,-3727.856055,0.00021,15]
[349578487,1737306652214,-2060.14913,0.00021,15]
[349578488,1737306652234,-151.0,0.00020546,2]
[349578489,1737306652244,-549.28921561,0.00021,15]
[349578490,1737306652254,-492.11,0.00021,15]
[349578491,1737306652265,-529.9616,0.00021,15]
[349578492,1737306652277,-83648.00000005,0.00021,15]
[349578493,1737306652287,-4921.76117112,0.00021,15]
[349578494,1737306652316,-3137.1,0.00021,15]
[349578497,1737306700730,500.3,0.00013011,2]
[349578500,1737307118459,297.66,0.00010137,2]
[349578503,1737307406720,3528.57,0.000183,30]
[349578504,1737307414910,173.84,0.00012329,2]
[349578505,1737307507816,983129.9392761,0.00012,2]
[349578507,1737307618121,-260.94267346,0.00014825,2]
[349578508,1737307658138,573.32806682,0.00013,2]
[349578509,1737307683807,87532.26838026,0.0001,2]
[349578515,1737307727673,498.61615947,0.00013,5]
[349578521,1737307832365,-378.18193318,0.00014,2]
[349578522,1737307832376,-2062.82217674,0.00014451,2]
[349578523,1737307832387,-2573.29046328,0.0001455,2]
[349578524,1737307832398,-423.1114974,0.00014551,2]
[349578525,1737307832414,-404.48092,0.00014651,2]
[349578526,1737307832425,-550.0,0.00015,2]
[349578527,1737307832436,-507.26391584,0.00015,2]
[349578528,1737307832447,-1517.64,0.000153,2]
[349578529,1737307832457,-165.25,0.00015396,2]
[349578530,1737307832468,-502.85009803,0.00015396,2]
[349578531,1737307832479,-300.0,0.00015399,2]
[349578532,1737307832495,-300.0,0.00015399,2]
[349578533,1737307832506,-1145.36279188,0.000154,2]
[349578534,1737307832519,-1880.36115618,0.000154,2]
[349578535,1737307832532,-10507.05836337,0.000154,2]
[349578536,1737307832559,-426.27575759,0.000154,2]
[349578537,1737307832572,-392.14905763,0.000154,2]
[349578538,1737307832585,-423.11149738,0.00015544,2]
[349578539,1737307832595,-167.17281758,0.00016,2]
[349578540,1737307832617,-2842.89498918,0.00016,2]
[349578541,1737307832627,-423.11149738,0.00016536,2]
[349578542,1737307832638,-300.0,0.0001659,2]
[349578543,1737307832648,-56138.0,0.00016591,2]
[349578544,1737307832659,-539.6973282,0.00016636,2]
[349578545,1737307832670,-1036.09,0.00016736,2]
[349578546,1737307832681,-692.48277469,0.00016811,2]
[349578547,1737307832692,-297.66,0.00016813,2]
[349578548,1737307832703,-420.0,0.00016847,2]
[349578549,1737307832714,-600.0,0.00017,2]
[349578550,1737307832725,-4100.17,0.00017391,2]
[349578551,1737307832740,-507.27,0.00017407,2]
[349578552,1737307832751,-250.0,0.00017526,2]
[349578553,1737307832762,-703.38,0.00017747,2]
[349578554,1737307832771,-23900.0,0.00017754,2]
[349578555,1737307832780,-193.26,0.00017762,2]
[349578556,1737307832790,-200.0,0.0001779,2]
[349578557,1737307832799,-209.29096884,0.000179,2]
[349578558,1737307832809,-7378.05,0.0001792,2]